Workbook

Sheet 【記載例】足立区提出用
B2: 足立区長 様
I4: 所在地 | J4: 足立区千住○丁目○○ー○
I5: 代表者氏名 | J5: 足立 太郎 | L5: 印
I6: 電話番号 | J6: ○○ー○○○○ー○○○○
B9: 風しん対策事業 件数内訳表
E13: 法人名 | H13: 医療法人社団 ○○会
H14: ○○○○クリニック
E15: 請求年月 | H15: 令和７年３月請求分
B17: 医療機関コード４ケタ→ | H17: ０２９５
C18: ※ 足立区の医療機関のみ | O18: 【計算スペース】※こちらに件数を記入すると請求書が埋まっていきます
I19: 請求件数 | J19: 請求金額 （税抜） | K19: 請求金額 （税込） | R19: 請求件数 | S19: 税抜き単価 | T19: 税込み単価 | U19: 請求総額（税抜き） ※システムエラーのチェック用 | V19: 請求総額（税込み）
B20: 抗体検査 | E20: ①健診・HI法 | I20: =R20 -> 0 | J20: =U20 -> 0 | K20: 0 | O20: 抗体検査 | P20: ①健診・HI法 | S20: 1290 | T20: =ROUNDDOWN(S20*(1+(K31)/100),0) -> 1419 | U20: =S20*R20 -> 0 | V20: =T20*R20 -> 0
E21: ②健診・EIA法 | I21: 0 | J21: 0 | K21: 0 | P21: ②健診・EIA法 | S21: 2680 | T21: =ROUNDDOWN(S21*(1+(K31)/100),0) -> 2948 | U21: 0 | V21: =T21*R21 -> 0
E22: ③HI法 | I22: 2 | J22: 9860 | K22: 10846 | P22: ③HI法 | R22: 2 | S22: 4930 | T22: =ROUNDDOWN(S22*(1+(K31)/100),0) -> 5423 | U22: 9860 | V22: 10846
E23: ④EIA法 | I23: 1 | J23: 6320 | K23: 6952 | P23: ④EIA法 | R23: 1 | S23: 6320 | T23: =ROUNDDOWN(S23*(1+(K31)/100),0) -> 6952 | U23: 6320 | V23: 6952
E24: ⑤夜間休日・HI法 | I24: 0 | J24: 0 | K24: 0 | P24: ⑤夜間休日・HI法 | S24: 5430 | T24: =ROUNDDOWN(S24*(1+(K31)/100),0) -> 5973 | U24: 0 | V24: 0
E25: ⑥夜間休日・EIA法 | I25: 0 | J25: 0 | K25: 0 | P25: ⑥夜間休日・EIA法 | S25: 6820 | T25: =ROUNDDOWN(S25*(1+(K31)/100),0) -> 7502 | U25: 0 | V25: 0
E26: 小計 | I26: 3 | J26: 16180 | K26: 17798 | P26: 小計 | R26: =SUM(R20:R25) -> 3 | U26: =SUM(U20:U25) -> 16180 | V26: =SUM(V20:V25) -> 17798 | W26: 予防接種関係の価格は市区町村で決定いたします。
B27: 予防接種 | E27: 通常（MRワクチン） | I27: =R27 -> 1 | J27: 9746 | K27: 10720 | O27: 予防接種 | P27: 通常（ＭＲワクチン） | R27: 1 | S27: 9746 | T27: =ROUNDDOWN(S27*(1+(K31)/100),0) -> 10720 | U27: =S27*R27 -> 9746 | V27: =T27*R27 -> 10720 | W27: ←クーポンの「予防接種」の金額を記載ください。
E28: 小計 | I28: 1 | J28: =SUM(J27:J27) -> 9746 | K28: =SUM(K27:K27) -> 10720 | P28: 小計 | R28: =SUM(R27:R27) -> 1 | U28: =SUM(U27:U27) -> 9746 | V28: =SUM(V27:V27) -> 10720 | W28: ※税込単価は、１円未満の端数は切り捨て
B29: 合計 | I29: 4 | J29: =J28+J26 -> 25926 | K29: =K28+K26 -> 28518 | O29: 合計 | R29: =R28+R26 -> 4 | U29: =U28+U26 -> 25926 | V29: =V28+V26 -> 28518
J31: 消費税率 | K31: 10 | L31: ％ | N31: ←内容に合わせて選択

Sheet 【入力用】足立区へ提出
B2: 足立区長 様
H4: 所在地
H5: 代表者氏名 | K5: 印
H6: 電話番号
B9: 風しん対策事業 件数内訳表
E13: 法人名
E15: 請求年月 | H15: 令和 年 月請求分
B17: 医療機関コード４ケタ→
C18: ※ 足立区の医療機関のみ | O18: 【計算スペース】※こちらに件数を記入すると請求書が埋まっていきます
I19: 請求件数 | J19: 請求金額 （税抜） | K19: 請求金額 （税込） | R19: 請求件数 | S19: 税抜き単価 | T19: 税込み単価 | U19: 請求総額（税抜き） ※システムエラーのチェック用 | V19: 請求総額（税込み）
B20: 抗体検査 | E20: ①健診・HI法 | I20: =R20 -> 0 | J20: =U20 -> 0 | K20: 0 | O20: 抗体検査 | P20: ①健診・HI法 | S20: 1290 | T20: =ROUNDDOWN(S20*(1+(K31)/100),0) -> 1419 | U20: =S20*R20 -> 0 | V20: =T20*R20 -> 0
E21: ②健診・EIA法 | I21: 0 | J21: 0 | K21: 0 | P21: ②健診・EIA法 | S21: 2680 | T21: =ROUNDDOWN(S21*(1+(K31)/100),0) -> 2948 | U21: 0 | V21: =T21*R21 -> 0
E22: ③HI法 | I22: 0 | J22: 0 | K22: 0 | P22: ③HI法 | S22: 4930 | T22: =ROUNDDOWN(S22*(1+(K31)/100),0) -> 5423 | U22: 0 | V22: 0
E23: ④EIA法 | I23: 0 | J23: 0 | K23: 0 | P23: ④EIA法 | S23: 6320 | T23: =ROUNDDOWN(S23*(1+(K31)/100),0) -> 6952 | U23: 0 | V23: 0
E24: ⑤夜間休日・HI法 | I24: 0 | J24: 0 | K24: 0 | P24: ⑤夜間休日・HI法 | S24: 5430 | T24: =ROUNDDOWN(S24*(1+(K31)/100),0) -> 5973 | U24: 0 | V24: 0
E25: ⑥夜間休日・EIA法 | I25: 0 | J25: 0 | K25: 0 | P25: ⑥夜間休日・EIA法 | S25: 6820 | T25: =ROUNDDOWN(S25*(1+(K31)/100),0) -> 7502 | U25: 0 | V25: 0
E26: 小計 | I26: 0 | J26: 0 | K26: 0 | P26: 小計 | R26: =SUM(R20:R25) -> 0 | U26: =SUM(U20:U25) -> 0 | V26: =SUM(V20:V25) -> 0 | W26: 予防接種関係の価格は市区町村で決定いたします。
B27: 予防接種 | E27: 通常（MRワクチン） | I27: =R27 -> 0 | J27: 0 | K27: 0 | O27: 予防接種 | P27: 通常（ＭＲワクチン） | S27: 9746 | T27: =ROUNDDOWN(S27*(1+(K31)/100),0) -> 10720 | U27: =S27*R27 -> 0 | V27: =T27*R27 -> 0 | W27: ←クーポンの「予防接種」の金額を記載ください。
E28: 小計 | I28: 0 | J28: =SUM(J27:J27) -> 0 | K28: =SUM(K27:K27) -> 0 | P28: 小計 | R28: =SUM(R27:R27) -> 0 | U28: =SUM(U27:U27) -> 0 | V28: =SUM(V27:V27) -> 0 | W28: ※税込単価は、１円未満の端数は切り捨て
B29: 合計 | I29: 0 | J29: =J28+J26 -> 0 | K29: =K28+K26 -> 0 | O29: 合計 | R29: =R28+R26 -> 0 | U29: =U28+U26 -> 0 | V29: =V28+V26 -> 0
J31: 消費税率 | K31: 10 | L31: ％ | N31: ←内容に合わせて選択
